fUST/lending_fUST_20250226
["ID","MTS","AMOUNT","RATE_DAILY","PERIOD"]
[354499661,1740540640843,-500.0,0.0003863,2]
[354499663,1740540640852,-500.0,0.0003863,2]
[354499665,1740540640862,-267.47745679,0.0003863,2]
[354499667,1740540640871,-500.0,0.0003863,2]
[354499669,1740540640880,-971.52,0.0003863,2]
[354499671,1740540640890,-1158.84,0.0003863,2]
[354499673,1740540640899,-500.0,0.0003863,2]
[354499675,1740540640909,-225.966468,0.0003863,14]
[354499677,1740540640918,-500.0,0.0003863,2]
[354499679,1740540640927,-510.5,0.0003863,2]
[354499681,1740540640936,-500.0,0.0003863,2]
[354499683,1740540640946,-500.0,0.0003863,2]
[354499686,1740540640956,-523.62,0.0003863,2]
[354499688,1740540640966,-1182.17,0.0003863,2]
[354499690,1740540640975,-500.0,0.0003863,2]
[354499692,1740540640984,-2562.41,0.0003863,2]
[354499694,1740540640993,-244.29585514,0.0003863,2]
[354499696,1740540641003,-500.0,0.0003863,2]
[354499698,1740540641012,-1492.21,0.0003863,2]
[354499700,1740540641021,-500.0,0.0003863,2]
[354499702,1740540641031,-323.44125499,0.0003863,2]
[354499704,1740540641042,-500.0,0.0003863,2]
[354499706,1740540641053,-151.0,0.0003863,14]
[354499708,1740540641062,-163.200968,0.0003863,14]
[354499710,1740540641072,-1080.35,0.0003863,2]
[354499712,1740540641082,-264.5681138,0.0003863,2]
[354499714,1740540641091,-500.0,0.0003863,2]
[354499716,1740540641100,-500.0,0.0003863,2]
[354499718,1740540641109,-965.32,0.0003863,2]
[354499720,1740540641119,-500.0,0.0003863,2]
[354499722,1740540641129,-500.0,0.0003863,2]
[354499724,1740540641138,-760.86,0.0003863,2]
[354499726,1740540641148,-500.0,0.0003863,2]
[354499728,1740540641157,-500.0,0.0003863,2]
[354499731,1740540641167,-547.66,0.0003863,2]
[354499733,1740540641176,-500.0,0.0003863,2]
[354499735,1740540641186,-667.43,0.0003863,2]
[354499737,1740540641196,-727.95,0.0003863,2]
[354499739,1740540641205,-503.30771581,0.0003863,2]
[354499741,1740540641215,-704.56,0.0003863,2]
[354499743,1740540641225,-151.0,0.0003863,14]
[354499745,1740540641234,-500.0,0.0003863,2]
[354499747,1740540641244,-151.0,0.0003863,14]
[354499749,1740540641253,-236.647335,0.0003863,14]
[354499751,1740540641263,-202.216684,0.0003863,14]
[354499753,1740540641272,-500.0,0.0003863,2]
[354499755,1740540641282,-500.0,0.0003863,2]
[354499757,1740540641291,-2013.39,0.0003863,2]
[354499759,1740540641302,-500.0,0.0003863,2]
[354499761,1740540641312,-500.0,0.0003863,2]
[354499763,1740540641321,-500.0,0.0003863,2]
[354499765,1740540641331,-1118.8,0.0003863,2]
[354499767,1740540641341,-508.14144609,0.0003863,2]
[354499769,1740540641355,-500.0,0.0003863,2]
[354499771,1740540641364,-500.0,0.0003863,2]
[354499773,1740540641373,-500.0,0.0003863,2]
[354499775,1740540641383,-500.0,0.0003863,2]
[354499777,1740540641392,-522.62,0.0003863,2]
[354499779,1740540641402,-601.91,0.0003863,2]
[354499781,1740540641411,-500.0,0.0003863,2]
[354499784,1740540641422,-500.0,0.0003863,2]
[354499786,1740540641433,-509.95,0.0003863,2]
[354499788,1740540641443,-500.0,0.0003863,2]
[354499790,1740540641452,-500.0,0.0003863,2]
[354499792,1740540641462,-500.0,0.0003863,2]
[354499794,1740540641471,-500.0,0.0003863,2]
[354499796,1740540641481,-500.0,0.0003863,2]
[354499798,1740540641490,-500.0,0.0003863,2]
[354499800,1740540641501,-927.47,0.0003863,2]
[354499802,1740540641511,-500.0,0.0003863,2]
[354499804,1740540641521,-500.0,0.0003863,2]
[354499806,1740540641531,-151.614036,0.0003863,14]
[354499808,1740540641541,-692.67,0.0003863,2]
[354499810,1740540641551,-572.37,0.0003863,2]
[354499812,1740540641561,-603.33720845,0.0003863,2]
[354499814,1740540641570,-500.0,0.0003863,2]
[354499816,1740540641581,-553.87066809,0.0003863,2]
[354499818,1740540641591,-500.0,0.0003863,2]
[354499821,1740540641600,-501.97969396,0.0003863,2]
[354499823,1740540641609,-617.77,0.0003863,2]
[354499825,1740540641619,-704.12,0.0003863,2]
[354499827,1740540641628,-500.0,0.0003863,2]
[354499829,1740540641638,-500.0,0.0003863,2]
[354499831,1740540641647,-1273.09,0.0003863,2]
[354499833,1740540641656,-500.0,0.0003863,2]
[354499835,1740540641666,-500.0,0.0003863,2]
[354499837,1740540641675,-500.0,0.0003863,2]
[354499839,1740540641684,-1780.05,0.0003863,2]
[354499841,1740540641694,-500.0,0.0003863,2]
[354499843,1740540641704,-500.0,0.0003863,2]
[354499845,1740540641713,-500.0,0.0003863,2]
[354499847,1740540641723,-1176.45,0.0003863,2]
[354499849,1740540641732,-500.0,0.0003863,2]
[354499851,1740540641741,-500.0,0.0003863,2]
[354499853,1740540641751,-500.0,0.0003863,2]
[354499855,1740540641761,-500.0,0.0003863,2]
[354499857,1740540641770,-500.0,0.0003863,2]
[354499859,1740540641779,-500.0,0.0003863,2]
[354499861,1740540641789,-500.0,0.0003863,2]
[354499863,1740540641800,-558.5,0.0003863,2]
[354499866,1740540641809,-500.0,0.0003863,2]
[354499868,1740540641819,-502.25311211,0.0003863,2]
[354499870,1740540641829,-572.07,0.0003863,2]
[354499872,1740540641839,-502.15799894,0.0003863,2]
[354499874,1740540641848,-567.01,0.0003863,2]
[354499876,1740540641858,-500.0,0.0003863,2]
[354499878,1740540641867,-600.72,0.0003863,2]
[354499880,1740540641877,-500.0,0.0003863,2]
[354499882,1740540641886,-600.16,0.0003863,2]
[354499884,1740540641896,-500.0,0.0003863,2]
[354499886,1740540641907,-556.78,0.0003863,2]
[354499888,1740540641916,-1513.64,0.0003863,2]
[354499890,1740540641926,-500.0,0.0003863,2]
[354499892,1740540641936,-697.68,0.0003863,2]
[354499895,1740540641946,-512.11606366,0.0003863,2]
[354499897,1740540641955,-500.0,0.0003863,2]
[354499899,1740540641966,-512.62,0.0003863,2]
[354499901,1740540641976,-500.0,0.0003863,2]
[354499903,1740540641985,-500.0,0.0003863,2]
[354499905,1740540641995,-501.16330138,0.0003863,2]
[354499907,1740540642005,-2514.19,0.0003863,2]
[354499909,1740540642015,-572.72494536,0.0003863,2]
[354499911,1740540642024,-500.0,0.0003863,2]
[354499913,1740540642033,-500.0,0.0003863,2]
[354499915,1740540642043,-515.38623527,0.0003863,2]
[354499917,1740540642057,-500.72154395,0.0003863,2]
[354499919,1740540642067,-1974.38,0.0003863,2]
[354499921,1740540642077,-8962.12,0.0003863,2]
[354499923,1740540642087,-500.0,0.0003863,2]
[354499925,1740540642096,-1940.03,0.0003863,2]
[354499928,1740540642106,-151.505747,0.0003863,14]
[354499930,1740540642116,-500.0,0.0003863,2]
[354499932,1740540642126,-500.0,0.0003863,2]
[354499934,1740540642135,-151.0,0.0003863,14]
[354499936,1740540642146,-151.0,0.0003863,14]
[354499938,1740540642156,-2687.19,0.0003863,2]
[354499940,1740540642165,-500.0,0.0003863,2]
[354499942,1740540642175,-9866.4,0.0003863,2]
[354499944,1740540642184,-151.0,0.0003863,14]
[354499946,1740540642194,-151.0,0.0003863,14]
[354499948,1740540642203,-500.0,0.0003863,2]
[354499950,1740540642213,-2689.27,0.0003863,2]
[354499952,1740540642222,-500.0,0.0003863,2]
[354499954,1740540642232,-206.16919963,0.0003863,2]
[354499957,1740540642242,-9116.85,0.0003863,2]
[354499959,1740540642252,-500.0,0.0003863,2]
[354499961,1740540642262,-661.1,0.0003863,2]
[354499963,1740540642271,-2800.82175353,0.0003863,2]
[354499966,1740540642293,-155.78824647,0.0003863,2]
[354499968,1740540642305,-528.65,0.0003863,2]
[354499971,1740540642315,-500.0,0.0003863,2]
[354499973,1740540642325,-500.0,0.0003863,2]
[354499975,1740540642334,-500.0,0.0003863,2]
[354499977,1740540642346,-500.0,0.0003863,2]
[354499979,1740540642357,-3800.0,0.0003863,120]
[354499981,1740540642367,-500.0,0.0003863,2]
[354499983,1740540642376,-500.0,0.0003863,2]
[354499988,1740540642566,-720.2,0.0003863,2]
[354499989,1740540642581,-542.06,0.0003863,2]
[354499990,1740540642591,-500.0,0.0003863,2]
[354499991,1740540642600,-253.30175353,0.0003863,2]
[354499992,1740540642612,-246.69824647,0.0003863,2]
[354499994,1740540642622,-162.66261521,0.0003863,2]
[354499996,1740540642633,-5469.60738479,0.0003863,2]
[354499999,1740540642642,-500.0,0.0003863,2]
[354500000,1740540642651,-515.70109425,0.0003863,2]
[354500001,1740540642661,-5808.86994636,0.0003863,2]
[354500002,1740540642672,-1267.32902211,0.0003863,2]
[354500003,1740540642683,-72.80103153,0.0003863,2]
[354500004,1740540642693,-19718.71,0.0003863,2]
[354500005,1740540642702,-500.0,0.0003863,2]
[354500006,1740540642711,-500.0,0.0003863,2]
[354500008,1740540642720,-616.57,0.0003863,2]
[354500010,1740540642730,-500.0,0.0003863,2]
[354500012,1740540642739,-455.54536589,0.0003863,2]
[354500013,1740540642748,-992.77,0.0003863,2]
[354500014,1740540642757,-9301.02,0.0003863,2]
[354500015,1740540642767,-500.0,0.0003863,2]
[354500016,1740540642776,-2623.09,0.0003863,2]
[354500017,1740540642785,-670.54,0.0003863,2]
[354500018,1740540642795,-846.06739093,0.0003863,2]
[354500019,1740540642808,-1349.05260907,0.0003863,2]
[354500020,1740540642818,-293.74632571,0.0003863,2]
[354500021,1740540642830,-347.93367429,0.0003863,2]
[354500022,1740540642840,-500.0,0.0003863,2]
[354500023,1740540642850,-87.06632571,0.0003863,2]
[354500024,1740540643059,-653.59,0.00038356,2]
[354500025,1740540643069,-822.97367429,0.0003863,2]
[354500026,1740540643079,-2115.74,0.0003863,2]
[354500027,1740540643088,-500.0,0.0003863,2]
[354500028,1740540643098,-1343.28,0.0003863,2]
[354500029,1740540643107,-501.52044205,0.0003863,2]
[354500030,1740540643117,-2363.46,0.0003863,2]
[354500031,1740540643127,-151.0,0.0003863,14]
[354500032,1740540643140,-151.0,0.0003863,14]
[354500033,1740540643150,-500.0,0.0003863,2]
[354500034,1740540643161,-151.0,0.0003863,14]
[354500035,1740540643171,-500.0,0.0003863,2]
[354500036,1740540643182,-38012.55358941,0.0003863,2]
[354500038,1740540643194,-265.5,0.0003863,2]
[354500039,1740540643206,-937.0971199,0.0003863,2]
[354500050,1740540643400,-10772.73199828,0.0003863,2]
[354500051,1740540643419,-44350.82141897,0.0003863,2]
[354500052,1740540643432,-5640.0000006,0.0003863,2]
[354500053,1740540643443,-2339.9999998,0.0003863,2]
[354500054,1740540643454,-2597.46,0.0003863,2]
[354500063,1740540646395,-834.21,0.00038356,2]
[354500064,1740540646404,-500.0,0.00038356,2]
[354500065,1740540646414,-500.0,0.00038356,2]
[354500066,1740540646425,-78.06200776,0.00038356,2]
[354500067,1740540646436,-428.44264884,0.00038356,2]
[354500068,1740540646446,-4313.3421731,0.0003863,2]
[354500249,1740541786919,2816.23,0.00021,30]
[354500285,1740541832514,-1000.0,0.0003,10]
[354500287,1740541832524,-167.47892099,0.0003746,120]
[354500289,1740541832534,-367.0,0.00038129,2]
[354500291,1740541832544,-9989.0,0.0003813,120]
[354500293,1740541832554,-160.1133442,0.00038246,2]
[354500295,1740541832563,-3000.0,0.00038256,2]
[354500298,1740541832573,-166.52968198,0.00038256,2]
[354500299,1740541832583,-27013.60407674,0.000383,2]
[354500302,1740541832593,-706.28,0.00038346,3]
[354500304,1740541832602,-353.14,0.00038346,3]
[354500306,1740541832611,-176.57,0.00038346,3]
[354500308,1740541832621,-529.75,0.00038346,3]
[354500310,1740541832630,-154.855,0.00038355,51]
[354500312,1740541832640,-500.0,0.00038355,15]
[354500314,1740541832649,-339.97943287,0.00038355,15]
[354500316,1740541832659,-500.0,0.00038355,15]
[354500318,1740541832668,-500.0,0.00038355,15]
[354500320,1740541832678,-500.0,0.00038355,15]
[354500322,1740541832687,-334.3149951,0.00038355,15]
[354500323,1740541832695,-500.0,0.00038355,15]
[354500325,1740541832705,-529.88855307,0.00038355,15]
[354500329,1740541832717,-500.0,0.00038356,2]
[354500332,1740541832726,-500.0,0.00038356,2]
[354500335,1740541832736,-500.0,0.00038356,2]
[354500338,1740541832745,-542.1114494,0.00038356,2]
[354500341,1740541832755,-500.0,0.00038356,2]
[354500344,1740541832764,-500.0,0.00038356,2]
[354500348,1740541832774,-525.71988781,0.00038356,2]
[354500350,1740541832784,-502.44687032,0.00038356,2]
[354500352,1740541832794,-500.0,0.00038356,2]
[354500354,1740541832805,-337.51757975,0.00038356,2]
[354500355,1740541832815,-500.0,0.00038356,2]
[354500356,1740541832824,-500.0,0.00038356,2]
[354500357,1740541832836,-500.0,0.00038356,2]
[354500358,1740541832845,-500.0,0.00038356,2]
[354500359,1740541832855,-504.66259547,0.00038356,2]
[354500360,1740541832865,-500.0,0.00038356,2]
[354500361,1740541832875,-500.0,0.00038356,2]
[354500362,1740541832885,-548.16,0.00038356,2]
[354500363,1740541832895,-500.0,0.00038356,2]
[354500364,1740541832905,-383.00522318,0.00038356,2]
[354500365,1740541832915,-500.0,0.00038356,2]
[354500366,1740541832925,-500.0,0.00038356,2]
[354500367,1740541832935,-500.0,0.00038356,2]
[354500368,1740541832945,-611.99,0.00038356,2]
[354500369,1740541832955,-240.00369937,0.00038356,2]
[354500370,1740541832965,-500.0,0.00038356,2]
[354500371,1740541832975,-890.56,0.00038356,2]
[354500372,1740541832984,-222.15177481,0.00038356,2]
[354500373,1740541832995,-500.0,0.00038356,2]
[354500374,1740541833005,-500.0,0.00038356,2]
[354500375,1740541833016,-500.0,0.00038356,2]
[354500376,1740541833026,-500.0,0.00038356,2]
[354500377,1740541833036,-500.0,0.00038356,2]
[354500378,1740541833046,-990.32,0.00038356,2]
[354500379,1740541833056,-500.0,0.00038356,2]
[354500380,1740541833067,-500.0,0.00038356,2]
[354500381,1740541833076,-500.0,0.00038356,2]
[354500382,1740541833087,-789.78,0.00038356,2]
[354500383,1740541833097,-500.0,0.00038356,2]
[354500384,1740541833106,-1500.75,0.00038356,2]
[354500385,1740541833116,-500.0,0.00038356,2]
[354500386,1740541833126,-500.0,0.00038356,2]
[354500387,1740541833136,-500.0,0.00038356,2]
[354500388,1740541833146,-500.0,0.00038356,2]
[354500389,1740541833156,-500.0,0.00038356,2]
[354500390,1740541833167,-524.67,0.00038356,2]
[354500391,1740541833177,-500.0,0.00038356,2]
[354500392,1740541833187,-500.0,0.00038356,2]
[354500393,1740541833197,-500.0,0.00038356,2]
[354500394,1740541833207,-500.0,0.00038356,2]
[354500395,1740541833217,-500.0,0.00038356,2]
[354500396,1740541833226,-500.0,0.00038356,2]
[354500397,1740541833236,-500.0,0.00038356,2]
[354500398,1740541833246,-500.0,0.00038356,2]
[354500399,1740541833256,-645.84,0.00038356,2]
[354500400,1740541833266,-667.29,0.00038356,2]
[354500401,1740541833276,-500.0,0.00038356,2]
[354500402,1740541833286,-500.0,0.00038356,2]
[354500403,1740541833296,-500.0,0.00038356,2]
[354500404,1740541833306,-500.0,0.00038356,2]
[354500405,1740541833316,-697.46,0.00038356,2]
[354500406,1740541833327,-363.4948297,0.00038356,2]
[354500407,1740541833338,-504.0468385,0.00038356,2]
[354500408,1740541833348,-500.0,0.00038356,2]
[354500409,1740541833358,-500.0,0.00038356,2]
[354500410,1740541833368,-500.0,0.00038356,2]
[354500411,1740541833378,-551.75,0.00038356,2]
[354500412,1740541833388,-611.81,0.00038356,2]
[354500413,1740541833398,-500.0,0.00038356,2]
[354500414,1740541833409,-500.0,0.00038356,2]
[354500415,1740541833419,-500.0,0.00038356,2]
[354500416,1740541833429,-246.49229896,0.00038356,2]
[354500417,1740541833440,-500.0,0.00038356,2]
[354500418,1740541833450,-500.0,0.00038356,2]
[354500419,1740541833460,-500.0,0.00038356,2]
[354500420,1740541833470,-500.0,0.00038356,2]
[354500421,1740541833480,-500.0,0.00038356,2]
[354500422,1740541833490,-500.0,0.00038356,2]
[354500423,1740541833500,-500.0,0.00038356,2]
[354500424,1740541833511,-500.0,0.00038356,2]
[354500425,1740541833521,-500.0,0.00038356,2]
[354500426,1740541833531,-618.03,0.00038356,2]
[354500427,1740541833540,-500.0,0.00038356,2]
[354500428,1740541833550,-500.0,0.00038356,2]
[354500429,1740541833560,-500.0,0.00038356,2]
[354500430,1740541833570,-515.37549219,0.00038356,2]
[354500432,1740541833580,-708.3,0.00038356,2]
[354500433,1740541833590,-500.0,0.00038356,2]
[354500435,1740541833600,-500.0,0.00038356,2]
[354500437,1740541833610,-500.0,0.00038356,2]
[354500439,1740541833620,-500.0,0.00038356,2]
[354500441,1740541833629,-506.1999913,0.00038356,2]
[354500442,1740541833640,-1145.36,0.00038356,2]
[354500443,1740541833650,-1093.44,0.00038356,2]
[354500444,1740541833660,-500.0,0.00038356,2]
[354500445,1740541833670,-500.0,0.00038356,2]
[354500446,1740541833681,-500.0,0.00038356,2]
[354500447,1740541833691,-655.21,0.00038356,2]
[354500448,1740541833701,-500.0,0.00038356,2]
[354500449,1740541833712,-500.0,0.00038356,2]
[354500450,1740541833723,-500.0,0.00038356,2]
[354500451,1740541833735,-500.0,0.00038356,2]
[354500452,1740541833745,-500.0,0.00038356,2]
[354500453,1740541833755,-500.0,0.00038356,2]
[354500454,1740541833767,-500.0,0.00038356,2]
[354500455,1740541833778,-1093.29,0.00038356,2]
[354500456,1740541833788,-500.0,0.00038356,2]
[354500457,1740541833798,-1270.97,0.00038356,2]
[354500458,1740541833810,-639.54,0.00038356,2]
[354500459,1740541833820,-500.0,0.00038356,2]
[354500460,1740541833832,-1985.84,0.00038356,2]
[354500461,1740541833842,-500.0,0.00038356,2]
[354500462,1740541833852,-553.98,0.00038356,2]
[354500463,1740541833862,-500.0,0.00038356,2]
[354500464,1740541833873,-500.0,0.00038356,2]
[354500465,1740541833883,-500.0,0.00038356,2]
[354500466,1740541833895,-1474.78,0.00038356,2]
[354500467,1740541833905,-500.0,0.00038356,2]
[354500468,1740541833915,-500.0,0.00038356,2]
[354500469,1740541833926,-546.60157318,0.00038356,2]
[354500470,1740541833937,-336.57115252,0.00038356,2]
[354500471,1740541833947,-500.0,0.00038356,2]
[354500472,1740541833957,-2148.66,0.00038356,2]
[354500473,1740541833968,-505.9817398,0.00038356,2]
[354500474,1740541833978,-500.0,0.00038356,2]
[354500475,1740541833988,-500.0,0.00038356,2]
[354500476,1740541833999,-500.0,0.00038356,2]
[354500477,1740541834009,-500.0,0.00038356,2]
[354500478,1740541834019,-1062.96,0.00038356,2]
[354500479,1740541834030,-500.0,0.00038356,2]
[354500480,1740541834040,-500.0,0.00038356,2]
[354500481,1740541834051,-500.0,0.00038356,2]
[354500482,1740541834061,-500.0,0.00038356,2]
[354500483,1740541834073,-1566.7,0.00038356,2]
[354500484,1740541834085,-2271.73,0.00038356,2]
[354500485,1740541834097,-1000.0,0.00038356,30]
[354500486,1740541834107,-910.04,0.00038356,2]
[354500487,1740541834118,-808.12,0.00038356,2]
[354500488,1740541834128,-660.19,0.00038356,2]
[354500489,1740541834139,-1062.27,0.00038356,2]
[354500490,1740541834149,-761.72,0.00038356,2]
[354500491,1740541834160,-500.0,0.00038356,2]
[354500492,1740541834171,-500.0,0.00038356,2]
[354500493,1740541834182,-587.82,0.00038356,2]
[354500494,1740541834192,-629.35593808,0.00038356,2]
[354500495,1740541834203,-2348.87,0.00038356,2]
[354500496,1740541834213,-500.0,0.00038356,2]
[354500497,1740541834223,-1082.88,0.00038356,2]
[354500498,1740541834234,-1083.65,0.00038356,2]
[354500499,1740541834245,-500.0,0.00038356,2]
[354500500,1740541834255,-500.0,0.00038356,2]
[354500501,1740541834266,-500.0,0.00038356,2]
[354500502,1740541834276,-1180.85,0.00038356,2]
[354500503,1740541834287,-588.21,0.00038356,2]
[354500504,1740541834298,-500.0,0.00038356,2]
[354500505,1740541834309,-500.0,0.00038356,2]
[354500506,1740541834319,-500.0,0.00038356,2]
[354500507,1740541834330,-215.38620874,0.00038356,2]
[354500508,1740541834341,-500.0,0.00038356,2]
[354500509,1740541834351,-500.0,0.00038356,2]
[354500510,1740541834362,-905.71,0.00038356,2]
[354500511,1740541834372,-500.0,0.00038356,2]
[354500512,1740541834383,-500.0,0.00038356,2]
[354500513,1740541834393,-522.98,0.00038356,2]
[354500514,1740541834403,-500.0,0.00038356,2]
[354500515,1740541834413,-916.92,0.00038356,120]
[354500516,1740541834423,-500.0,0.00038356,2]
[354500517,1740541834434,-174.97140395,0.00038356,2]
[354500518,1740541834445,-500.0,0.00038356,2]
[354500519,1740541834455,-594.42,0.00038356,2]
[354500520,1740541834466,-500.0,0.00038356,2]
[354500521,1740541834476,-940.15,0.00038356,2]
[354500522,1740541834486,-500.0,0.00038356,2]
[354500523,1740541834496,-500.0,0.00038356,2]
[354500524,1740541834507,-537.64318235,0.00038356,2]
[354500525,1740541834517,-500.0,0.00038356,2]
[354500526,1740541834527,-1845.61,0.00038356,2]
[354500527,1740541834536,-850.18,0.00038356,2]
[354500528,1740541834546,-500.0,0.00038356,2]
[354500529,1740541834557,-566.29,0.00038356,2]
[354500530,1740541834567,-1025.57,0.00038356,2]
[354500531,1740541834577,-634.95,0.00038356,2]
[354500532,1740541834589,-1528.03,0.00038356,2]
[354500533,1740541834599,-666.28,0.00038356,2]
[354500534,1740541834609,-1167.0,0.00038356,2]
[354500535,1740541834620,-500.0,0.00038356,2]
[354500536,1740541834630,-500.0,0.00038356,2]
[354500537,1740541834640,-1631.72,0.00038356,2]
[354500538,1740541834650,-500.0,0.00038356,2]
[354500539,1740541834661,-500.0,0.00038356,2]
[354500540,1740541834671,-500.0,0.00038356,2]
[354500541,1740541834682,-524.39,0.00038356,2]
[354500542,1740541834921,-500.0,0.00038356,2]
[354500543,1740541834931,-500.0,0.00038356,2]
[354500544,1740541834941,-500.0,0.00038356,2]
[354500545,1740541834951,-550.66,0.00038356,2]
[354500546,1740541834961,-500.0,0.00038356,2]
[354500547,1740541834970,-500.0,0.00038356,2]
[354500548,1740541834979,-500.0,0.00038356,2]
[354500549,1740541834989,-776.92,0.00038356,2]
[354500550,1740541834999,-540.59,0.00038356,2]
[354500551,1740541835008,-500.0,0.00038356,2]
[354500552,1740541835017,-500.0,0.00038356,2]
[354500553,1740541835027,-500.0,0.00038356,2]
[354500554,1740541835037,-500.0,0.00038356,2]
[354500555,1740541835047,-1099.25,0.00038356,2]
[354500556,1740541835056,-500.0,0.00038356,2]
[354500557,1740541835066,-531.21,0.00038356,2]
[354500558,1740541835076,-500.0,0.00038356,2]
[354500559,1740541835087,-500.0,0.00038356,2]
[354500560,1740541835096,-500.0,0.00038356,2]
[354500561,1740541835106,-500.0,0.00038356,2]
[354500562,1740541835115,-653.07,0.00038356,2]
[354500563,1740541835125,-500.0,0.00038356,2]
[354500564,1740541835134,-500.0,0.00038356,2]
[354500565,1740541835143,-500.0,0.00038356,2]
[354500566,1740541835153,-500.0,0.00038356,2]
[354500567,1740541835162,-500.0,0.00038356,2]
[354500568,1740541835171,-953.29,0.00038356,2]
[354500569,1740541835181,-135.67159706,0.00038356,2]
[354500570,1740541835221,-539.84840294,0.00038356,2]
[354500571,1740541835231,-2325.51,0.00038356,2]
[354500572,1740541835240,-502.40540961,0.00038356,2]
[354500573,1740541835249,-530.08201985,0.00038356,2]
[354500574,1740541835259,-500.0,0.00038356,2]
[354500575,1740541835269,-500.0,0.00038356,2]
[354500576,1740541835278,-500.0,0.00038356,2]
[354500577,1740541835288,-500.0,0.00038356,2]
[354500578,1740541835297,-1778.36,0.00038356,2]
[354500579,1740541835307,-500.0,0.00038356,2]
[354500580,1740541835316,-500.0,0.00038356,2]
[354500581,1740541835325,-500.0,0.00038356,2]
[354500582,1740541835336,-500.0,0.00038356,2]
[354500583,1740541835345,-500.0,0.00038356,2]
[354500584,1740541835356,-2484.09,0.00038356,2]
[354500585,1740541835365,-1225.49,0.00038356,2]
[354500586,1740541835375,-298.37293952,0.00038356,2]
[354500587,1740541835384,-8357.11,0.00038356,2]
[354500588,1740541835394,-500.0,0.00038356,2]
[354500589,1740541835403,-500.0,0.00038356,2]
[354500590,1740541835413,-541.53332668,0.00038356,2]
[354500591,1740541835423,-500.0,0.00038356,2]
[354500592,1740541835432,-998.16,0.00038356,2]
[354500593,1740541835442,-2602.84,0.00038356,2]
[354500594,1740541835451,-500.0,0.00038356,2]
[354500595,1740541835460,-500.0,0.00038356,2]
[354500596,1740541835469,-500.0,0.00038356,2]
[354500597,1740541835479,-565.19,0.00038356,2]
[354500598,1740541835488,-500.0,0.00038356,2]
[354500599,1740541835498,-799.45,0.00038356,2]
[354500600,1740541835507,-500.0,0.00038356,2]
[354500601,1740541835517,-500.0,0.00038356,2]
[354500602,1740541835526,-2764.65,0.00038356,2]
[354500603,1740541835535,-500.0,0.00038356,2]
[354500604,1740541835544,-500.0,0.00038356,2]
[354500605,1740541835553,-1783.36,0.00038356,2]
[354500606,1740541835563,-6750.26,0.00038356,2]
[354500607,1740541835572,-500.0,0.00038356,2]
[354500608,1740541835581,-500.0,0.00038356,2]
[354500609,1740541835590,-1338.27805943,0.00038356,2]
[354500610,1740541835607,-3928.80194057,0.00038356,2]
[354500611,1740541835616,-1830.68,0.00038356,2]
[354500612,1740541835626,-500.0,0.00038356,2]
[354500613,1740541835635,-500.0,0.00038356,2]
[354500614,1740541835644,-2033.02,0.00038356,2]
[354500615,1740541835653,-3800.0,0.00038356,120]